[Event "Titled Tuesday Blitz March 01 Early 2022"]
[White "Tarhan, Adar"]
[Black "Muhammed, Shuaau"]
[WhiteFideId "34544712"]
[BlackFideId "16700406"]
[WhiteElo "1802"]
[BlackElo "1674"]
[Result "0-1"]
[Round "01"]
[TimeControl "180+1"]
[Date "2022.03.01"]
[WhiteClock "0:01:37"]
[BlackClock "0:00:56"]

1. e4 {[%clk 0:02:55]}  e5 {[%clk 0:02:59]} 2. Nf3 {[%clk 0:02:51]}  Nc6 {[%clk 0:02:59]} 3. Bc4 {[%clk 0:02:51]}  Nf6 {[%clk 0:02:59]} 4. Ng5 {[%clk 0:02:50]}  d5 {[%clk 0:02:59]} 5. exd5 {[%clk 0:02:51]}  Na5 {[%clk 0:02:59]} 6. Bb5+ {[%clk 0:02:51]}  c6 {[%clk 0:03:00]} 7. dxc6 {[%clk 0:02:52]}  bxc6 {[%clk 0:03:00]} 8. Bd3 {[%clk 0:02:52]}  Nd5 {[%clk 0:02:52]} 9. Nf3 {[%clk 0:02:48]}  Bd6 {[%clk 0:02:51]} 10. Nc3 {[%clk 0:02:45]}  O-O {[%clk 0:02:48]} 11. O-O {[%clk 0:02:44]}  Nf4 {[%clk 0:02:48]} 12. Be4 {[%clk 0:02:38]}  f5 {[%clk 0:02:46]} 13. Bd3 {[%clk 0:02:32]}  e4 {[%clk 0:02:45]} 14. Nxe4 {[%clk 0:02:31]}  fxe4 {[%clk 0:02:45]} 15. Bxe4 {[%clk 0:02:32]}  Bf5 {[%clk 0:02:39]} 16. d3 {[%clk 0:02:28]}  Bxe4 {[%clk 0:02:32]} 17. dxe4 {[%clk 0:02:29]}  Bc7 {[%clk 0:02:30]} 18. Qe1 {[%clk 0:02:26]}  Nc4 {[%clk 0:02:17]} 19. b3 {[%clk 0:02:25]}  Ne5 {[%clk 0:02:10]} 20. Nxe5 {[%clk 0:02:24]}  Bxe5 {[%clk 0:02:10]} 21. Rb1 {[%clk 0:02:24]}  Qg5 {[%clk 0:02:01]} 22. g3 {[%clk 0:02:18]}  Qg4 {[%clk 0:01:53]} 23. Bxf4 {[%clk 0:02:14]}  Rxf4 {[%clk 0:01:39]} 24. Qa5 {[%clk 0:02:10]}  Rxe4 {[%clk 0:01:35]} 25. f3 {[%clk 0:02:10]}  Bd4+ {[%clk 0:01:26]} 26. Kh1 {[%clk 0:02:08]}  Qe6 {[%clk 0:01:15]} 27. Rbd1 {[%clk 0:02:05]}  Bb6 {[%clk 0:01:13]} 28. Qc3 {[%clk 0:02:00]}  Re3 {[%clk 0:01:07]} 29. Qb4 {[%clk 0:01:56]}  Re8 {[%clk 0:01:06]} 30. Rd6 {[%clk 0:01:54]}  Qh3 {[%clk 0:01:01]} 31. Qc4+ {[%clk 0:01:53]}  Kh8 {[%clk 0:00:58]} 32. Rdd1 {[%clk 0:01:50]}  Re2 {[%clk 0:00:57]} 33. Rd2 {[%clk 0:01:37]}  Qxh2# {[%clk 0:00:56]} 0-1


[Site "https://www.chess.com"]

[Event "Titled Tuesday Blitz March 01 Early 2022"]
[White "Todorovic, Bojan"]
[Black "FGHSMN"]
[WhiteFideId "917087"]
[WhiteElo "2266"]
[BlackElo "2698"]
[Result "1-0"]
[Round "01"]
[TimeControl "180+1"]
[Date "2022.03.01"]
[WhiteClock "0:00:10"]
[BlackClock "0:00:10"]

1. Nf3 {[%clk 0:02:58]}  c5 {[%clk 0:02:57]} 2. g3 {[%clk 0:02:57]}  g6 {[%clk 0:02:36]} 3. Bg2 {[%clk 0:02:56]}  Bg7 {[%clk 0:02:33]} 4. O-O {[%clk 0:02:56]}  Nc6 {[%clk 0:02:32]} 5. c3 {[%clk 0:02:55]}  e5 {[%clk 0:02:27]} 6. d4 {[%clk 0:02:50]}  exd4 {[%clk 0:02:23]} 7. cxd4 {[%clk 0:02:49]}  Nxd4 {[%clk 0:02:08]} 8. Nxd4 {[%clk 0:02:36]}  Bxd4 {[%clk 0:02:06]} 9. Nc3 {[%clk 0:02:35]}  Ne7 {[%clk 0:01:57]} 10. Bg5 {[%clk 0:02:27]}  h6 {[%clk 0:01:55]} 11. Bf4 {[%clk 0:02:22]}  g5 {[%clk 0:01:52]} 12. Bd6 {[%clk 0:02:03]}  Nf5 {[%clk 0:01:45]} 13. Nb5 {[%clk 0:02:02]}  Nxd6 {[%clk 0:01:43]} 14. Nxd6+ {[%clk 0:02:01]}  Kf8 {[%clk 0:01:43]} 15. e3 {[%clk 0:01:57]}  Bf6 {[%clk 0:01:36]} 16. Qd5 {[%clk 0:01:52]}  Qe7 {[%clk 0:01:36]} 17. Qxc5 {[%clk 0:01:48]}  Be5 {[%clk 0:01:28]} 18. Rfd1 {[%clk 0:01:45]}  Bxd6 {[%clk 0:01:25]} 19. Rxd6 {[%clk 0:01:44]}  Kg7 {[%clk 0:01:21]} 20. Qd4+ {[%clk 0:01:41]}  f6 {[%clk 0:01:19]} 21. Rc1 {[%clk 0:01:41]}  Rd8 {[%clk 0:01:17]} 22. Rc7 {[%clk 0:01:35]}  Rb8 {[%clk 0:01:02]} 23. h4 {[%clk 0:01:18]}  b5 {[%clk 0:00:58]} 24. hxg5 {[%clk 0:01:09]}  hxg5 {[%clk 0:00:59]} 25. Rc5 {[%clk 0:01:02]}  Rb6 {[%clk 0:00:37]} 26. Rxg5+ {[%clk 0:00:56]}  Kf8 {[%clk 0:00:36]} 27. Rxb6 {[%clk 0:00:45]}  axb6 {[%clk 0:00:37]} 28. Bd5 {[%clk 0:00:43]}  Qd6 {[%clk 0:00:22]} 29. Rg8+ {[%clk 0:00:37]}  Ke7 {[%clk 0:00:23]} 30. Rg7+ {[%clk 0:00:31]}  Kf8 {[%clk 0:00:23]} 31. Rf7+ {[%clk 0:00:27]}  Ke8 {[%clk 0:00:23]} 32. Rxf6 {[%clk 0:00:27]}  Qe7 {[%clk 0:00:20]} 33. Rh6 {[%clk 0:00:17]}  Qg5 {[%clk 0:00:12]} 34. Rh7 {[%clk 0:00:11]}  d6 {[%clk 0:00:10]} 35. Qh8+ {[%clk 0:00:10]} 1-0


[Site "https://www.chess.com"]

[Event "Titled Tuesday Blitz March 01 Early 2022"]
[White "Urazayev, Arystanbek"]
[Black "Manukyan, Sargis A."]
[WhiteFideId "13709810"]
[BlackFideId "13303970"]
[WhiteElo "2321"]
[BlackElo "2187"]
[Result "0-1"]
[Round "01"]
[TimeControl "180+1"]
[Date "2022.03.01"]
[WhiteClock "0:01:55"]
[BlackClock "0:01:15"]

1. e4 {[%clk 0:03:00]}  c5 {[%clk 0:02:58]} 2. Nf3 {[%clk 0:03:01]}  d6 {[%clk 0:02:52]} 3. d4 {[%clk 0:03:01]}  cxd4 {[%clk 0:02:53]} 4. Nxd4 {[%clk 0:03:02]}  Nf6 {[%clk 0:02:51]} 5. Nc3 {[%clk 0:03:02]}  g6 {[%clk 0:02:49]} 6. Be3 {[%clk 0:03:01]}  Bg7 {[%clk 0:02:48]} 7. f3 {[%clk 0:03:02]}  O-O {[%clk 0:02:48]} 8. Qd2 {[%clk 0:03:02]}  Nc6 {[%clk 0:02:47]} 9. O-O-O {[%clk 0:03:03]}  d5 {[%clk 0:02:45]} 10. Qe1 {[%clk 0:03:00]}  e5 {[%clk 0:02:41]} 11. Nxc6 {[%clk 0:03:01]}  bxc6 {[%clk 0:02:42]} 12. exd5 {[%clk 0:03:01]}  Nxd5 {[%clk 0:02:41]} 13. Bc4 {[%clk 0:03:01]}  Be6 {[%clk 0:02:40]} 14. Ne4 {[%clk 0:03:02]}  Qc7 {[%clk 0:02:37]} 15. Bc5 {[%clk 0:03:02]}  Rfd8 {[%clk 0:02:36]} 16. Qh4 {[%clk 0:03:02]}  h6 {[%clk 0:02:32]} 17. g4 {[%clk 0:03:03]}  a5 {[%clk 0:02:24]} 18. g5 {[%clk 0:02:53]}  h5 {[%clk 0:02:23]} 19. Nf6+ {[%clk 0:02:40]}  Nxf6 {[%clk 0:02:09]} 20. Bxe6 {[%clk 0:02:39]}  Nd5 {[%clk 0:02:03]} 21. Bh3 {[%clk 0:02:25]}  Nf4 {[%clk 0:02:00]} 22. Rxd8+ {[%clk 0:02:03]}  Rxd8 {[%clk 0:01:59]} 23. Bf1 {[%clk 0:02:03]}  e4 {[%clk 0:01:46]} 24. fxe4 {[%clk 0:01:56]}  Qe5 {[%clk 0:01:32]} 25. Ba3 {[%clk 0:01:55]}  Qxe4 {[%clk 0:01:15]} 0-1


[Site "https://www.chess.com"]

[Event "Titled Tuesday Blitz March 01 Early 2022"]
[White "Urbina Perez, Juan Antonio"]
[Black "Jones, Gawain C B"]
[WhiteFideId "2217368"]
[BlackFideId "409561"]
[WhiteElo "2192"]
[BlackElo "2657"]
[Result "1/2-1/2"]
[Round "01"]
[TimeControl "180+1"]
[Date "2022.03.01"]
[WhiteClock "0:00:08"]
[BlackClock "0:00:03"]

1. e4 {[%clk 0:02:53]}  e5 {[%clk 0:03:00]} 2. Nf3 {[%clk 0:02:44]}  Nc6 {[%clk 0:03:00]} 3. Bc4 {[%clk 0:02:43]}  Bc5 {[%clk 0:02:59]} 4. c3 {[%clk 0:02:43]}  Nf6 {[%clk 0:02:59]} 5. d3 {[%clk 0:02:44]}  d6 {[%clk 0:02:57]} 6. O-O {[%clk 0:02:44]}  h6 {[%clk 0:02:55]} 7. Re1 {[%clk 0:02:43]}  O-O {[%clk 0:02:49]} 8. h3 {[%clk 0:02:42]}  Re8 {[%clk 0:02:40]} 9. Bb3 {[%clk 0:02:27]}  Bb6 {[%clk 0:02:27]} 10. a4 {[%clk 0:02:24]}  Be6 {[%clk 0:02:21]} 11. Nbd2 {[%clk 0:02:23]}  d5 {[%clk 0:02:19]} 12. exd5 {[%clk 0:02:13]}  Bxd5 {[%clk 0:02:20]} 13. Ne4 {[%clk 0:02:08]}  Bxe4 {[%clk 0:02:14]} 14. dxe4 {[%clk 0:02:09]}  Qxd1 {[%clk 0:02:12]} 15. Bxd1 {[%clk 0:02:09]}  Rad8 {[%clk 0:02:08]} 16. Bc2 {[%clk 0:02:08]}  a5 {[%clk 0:02:05]} 17. Nd2 {[%clk 0:01:59]}  Bc5 {[%clk 0:02:01]} 18. Nc4 {[%clk 0:01:54]}  Rd7 {[%clk 0:01:58]} 19. Ne3 {[%clk 0:01:52]}  Red8 {[%clk 0:01:56]} 20. Kf1 {[%clk 0:01:41]}  g6 {[%clk 0:01:53]} 21. Ng4 {[%clk 0:01:32]}  Nxg4 {[%clk 0:01:52]} 22. hxg4 {[%clk 0:01:32]}  Kg7 {[%clk 0:01:48]} 23. Ke2 {[%clk 0:01:32]}  b6 {[%clk 0:01:36]} 24. f3 {[%clk 0:01:31]}  Rd6 {[%clk 0:01:34]} 25. Rd1 {[%clk 0:01:30]}  Nb8 {[%clk 0:01:27]} 26. Rxd6 {[%clk 0:01:29]}  Rxd6 {[%clk 0:01:27]} 27. Bd2 {[%clk 0:01:28]}  Nc6 {[%clk 0:01:14]} 28. Rd1 {[%clk 0:01:28]}  Rd8 {[%clk 0:01:11]} 29. Be1 {[%clk 0:01:26]}  Kf6 {[%clk 0:01:06]} 30. Rxd8 {[%clk 0:01:22]}  Nxd8 {[%clk 0:01:06]} 31. Bh4+ {[%clk 0:01:22]}  g5 {[%clk 0:01:06]} 32. Bg3 {[%clk 0:01:22]}  Bd6 {[%clk 0:00:56]} 33. Bb3 {[%clk 0:01:21]}  Kg6 {[%clk 0:00:50]} 34. Bd5 {[%clk 0:01:10]}  Kf6 {[%clk 0:00:49]} 35. Bf2 {[%clk 0:01:09]}  Ne6 {[%clk 0:00:45]} 36. Be3 {[%clk 0:01:01]}  Nf8 {[%clk 0:00:40]} 37. Kd3 {[%clk 0:00:59]}  Ng6 {[%clk 0:00:35]} 38. Ke2 {[%clk 0:00:47]}  Ke7 {[%clk 0:00:28]} 39. Bc4 {[%clk 0:00:44]}  Nf8 {[%clk 0:00:24]} 40. Bd5 {[%clk 0:00:41]}  Nd7 {[%clk 0:00:24]} 41. Bc6 {[%clk 0:00:37]}  Nf6 {[%clk 0:00:23]} 42. Bb5 {[%clk 0:00:36]}  Ke6 {[%clk 0:00:20]} 43. Bc4+ {[%clk 0:00:36]}  Ke7 {[%clk 0:00:21]} 44. Bb5 {[%clk 0:00:36]}  Nh7 {[%clk 0:00:21]} 45. Bc4 {[%clk 0:00:36]}  Nf8 {[%clk 0:00:20]} 46. Bd5 {[%clk 0:00:36]}  f6 {[%clk 0:00:20]} 47. Bc6 {[%clk 0:00:33]}  Ng6 {[%clk 0:00:18]} 48. Bd5 {[%clk 0:00:31]}  Bc5 {[%clk 0:00:18]} 49. Bd2 {[%clk 0:00:28]}  Kd6 {[%clk 0:00:17]} 50. Bf7 {[%clk 0:00:27]}  Ne7 {[%clk 0:00:15]} 51. Kd3 {[%clk 0:00:23]}  Bg1 {[%clk 0:00:14]} 52. Ke2 {[%clk 0:00:23]}  Nc8 {[%clk 0:00:14]} 53. Bd5 {[%clk 0:00:21]}  c6 {[%clk 0:00:13]} 54. Bf7 {[%clk 0:00:20]}  Ke7 {[%clk 0:00:13]} 55. Bc4 {[%clk 0:00:19]}  Nd6 {[%clk 0:00:13]} 56. Bd3 {[%clk 0:00:18]}  Bh2 {[%clk 0:00:11]} 57. b4 {[%clk 0:00:18]}  Bf4 {[%clk 0:00:11]} 58. Be1 {[%clk 0:00:18]}  c5 {[%clk 0:00:08]} 59. bxc5 {[%clk 0:00:17]}  bxc5 {[%clk 0:00:09]} 60. c4 {[%clk 0:00:14]}  Nb7 {[%clk 0:00:08]} 61. Kd1 {[%clk 0:00:13]}  Be3 {[%clk 0:00:08]} 62. Kc2 {[%clk 0:00:13]}  Kd6 {[%clk 0:00:08]} 63. Kb3 {[%clk 0:00:13]}  Kc7 {[%clk 0:00:09]} 64. Be2 {[%clk 0:00:11]}  Kc6 {[%clk 0:00:09]} 65. Bd3 {[%clk 0:00:12]}  Kb6 {[%clk 0:00:09]} 66. Be2 {[%clk 0:00:12]}  Nd8 {[%clk 0:00:10]} 67. Bd3 {[%clk 0:00:12]}  Ne6 {[%clk 0:00:10]} 68. Kb2 {[%clk 0:00:09]}  Bd4+ {[%clk 0:00:09]} 69. Kb3 {[%clk 0:00:09]}  Bg1 {[%clk 0:00:05]} 70. Bf1 {[%clk 0:00:09]}  Nd4+ {[%clk 0:00:04]} 71. Kb2 {[%clk 0:00:09]}  Nc6 {[%clk 0:00:04]} 72. Kb3 {[%clk 0:00:09]}  Bd4 {[%clk 0:00:05]} 73. Bd2 {[%clk 0:00:08]}  Ka6 {[%clk 0:00:05]} 74. Be1 {[%clk 0:00:09]}  Na7 {[%clk 0:00:05]} 75. Bd2 {[%clk 0:00:09]}  Nc8 {[%clk 0:00:05]} 76. Be1 {[%clk 0:00:10]}  Ne7 {[%clk 0:00:06]} 77. Be2 {[%clk 0:00:10]}  Nc6 {[%clk 0:00:06]} 78. Bf1 {[%clk 0:00:11]}  Be3 {[%clk 0:00:06]} 79. Kb2 {[%clk 0:00:10]}  Nd4 {[%clk 0:00:06]} 80. Kc3 {[%clk 0:00:10]}  Bc1 {[%clk 0:00:06]} 81. Bf2 {[%clk 0:00:08]}  Ne6 {[%clk 0:00:06]} 82. Be1 {[%clk 0:00:08]}  Ba3 {[%clk 0:00:06]} 83. Kb3 {[%clk 0:00:08]}  Bb4 {[%clk 0:00:06]} 84. Bf2 {[%clk 0:00:09]}  Kb6 {[%clk 0:00:06]} 85. Be3 {[%clk 0:00:09]}  Kc6 {[%clk 0:00:07]} 86. Be2 {[%clk 0:00:09]}  Kd6 {[%clk 0:00:07]} 87. Bf1 {[%clk 0:00:10]}  Ke7 {[%clk 0:00:08]} 88. Be2 {[%clk 0:00:10]}  Kf7 {[%clk 0:00:08]} 89. Bf1 {[%clk 0:00:11]}  Kg7 {[%clk 0:00:09]} 90. Be2 {[%clk 0:00:11]}  Kg6 {[%clk 0:00:09]} 91. Bf1 {[%clk 0:00:12]}  h5 {[%clk 0:00:09]} 92. gxh5+ {[%clk 0:00:12]}  Kxh5 {[%clk 0:00:10]} 93. g4+ {[%clk 0:00:12]}  Kg6 {[%clk 0:00:10]} 94. Be2 {[%clk 0:00:12]}  Kf7 {[%clk 0:00:10]} 95. Bf1 {[%clk 0:00:11]}  Ke7 {[%clk 0:00:11]} 96. Be2 {[%clk 0:00:12]}  Be1 {[%clk 0:00:10]} 97. Bf1 {[%clk 0:00:12]}  Kd6 {[%clk 0:00:11]} 98. Kc2 {[%clk 0:00:12]}  Bg3 {[%clk 0:00:08]} 99. Be2 {[%clk 0:00:11]}  Bf4 {[%clk 0:00:07]} 100. Bf2 {[%clk 0:00:11]}  Kc6 {[%clk 0:00:06]} 101. Be1 {[%clk 0:00:10]}  Be3 {[%clk 0:00:06]} 102. Kd3 {[%clk 0:00:10]}  Bd4 {[%clk 0:00:06]} 103. Bxa5 {[%clk 0:00:10]}  Nf4+ {[%clk 0:00:06]} 104. Kd2 {[%clk 0:00:09]}  Ne6 {[%clk 0:00:07]} 105. Kd1 {[%clk 0:00:09]}  Kb7 {[%clk 0:00:06]} 106. Bd2 {[%clk 0:00:10]}  Ka6 {[%clk 0:00:06]} 107. Kc2 {[%clk 0:00:10]}  Nc7 {[%clk 0:00:06]} 108. Kd1 {[%clk 0:00:11]}  Na8 {[%clk 0:00:06]} 109. Kc2 {[%clk 0:00:11]}  Nb6 {[%clk 0:00:07]} 110. Kb3 {[%clk 0:00:11]}  Nc8 {[%clk 0:00:07]} 111. Kc2 {[%clk 0:00:11]}  Na7 {[%clk 0:00:07]} 112. Kb3 {[%clk 0:00:11]}  Nc6 {[%clk 0:00:07]} 113. Kc2 {[%clk 0:00:12]}  Bf2 {[%clk 0:00:06]} 114. Bc3 {[%clk 0:00:10]}  Be3 {[%clk 0:00:05]} 115. Kb3 {[%clk 0:00:11]}  Bd4 {[%clk 0:00:03]} 116. Bd2 {[%clk 0:00:10]}  Ba1 {[%clk 0:00:03]} 117. Be3 {[%clk 0:00:09]}  Bd4 {[%clk 0:00:03]} 118. Bd2 {[%clk 0:00:09]}  Bf2 {[%clk 0:00:03]} 119. Kc2 {[%clk 0:00:09]}  Nd4+ {[%clk 0:00:03]} 120. Kd1 {[%clk 0:00:09]}  Bg3 {[%clk 0:00:03]} 121. Bc3 {[%clk 0:00:08]}  Ne6 {[%clk 0:00:01]} 122. Bd2 {[%clk 0:00:07]}  Bf2 {[%clk 0:00:01]} 123. Bc1 {[%clk 0:00:06]}  Bd4 {[%clk 0:00:02]} 124. Bd2 {[%clk 0:00:06]}  Nc7 {[%clk 0:00:02]} 125. Kc2 {[%clk 0:00:07]}  Na8 {[%clk 0:00:03]} 126. Kb3 {[%clk 0:00:07]}  Nc7 {[%clk 0:00:03]} 127. Kc2 {[%clk 0:00:08]}  Ne8 {[%clk 0:00:03]} 1/2-1/2


[Site "https://www.chess.com"]

[Event "Titled Tuesday Blitz March 01 Early 2022"]
[White "Urbina Quiroz, Edwin"]
[Black "Dziththauly, Ramadhan"]
[WhiteFideId "6500650"]
[BlackFideId "7105525"]
[WhiteElo "2130"]
[BlackElo "2609"]
[Result "0-1"]
[Round "01"]
[TimeControl "180+1"]
[Date "2022.03.01"]
[WhiteClock "0:00:03"]
[BlackClock "0:00:21"]

1. e4 {[%clk 0:02:51]}  c5 {[%clk 0:02:59]} 2. Nf3 {[%clk 0:02:51]}  d6 {[%clk 0:02:59]} 3. d4 {[%clk 0:02:51]}  cxd4 {[%clk 0:02:59]} 4. Nxd4 {[%clk 0:02:51]}  Nf6 {[%clk 0:02:59]} 5. Nc3 {[%clk 0:02:51]}  a6 {[%clk 0:03:00]} 6. Bc4 {[%clk 0:02:50]}  e6 {[%clk 0:03:00]} 7. Bb3 {[%clk 0:02:50]}  b5 {[%clk 0:03:00]} 8. O-O {[%clk 0:02:47]}  Nbd7 {[%clk 0:03:00]} 9. f4 {[%clk 0:02:47]}  Nc5 {[%clk 0:02:59]} 10. e5 {[%clk 0:02:46]}  Nfe4 {[%clk 0:02:37]} 11. Nxe4 {[%clk 0:02:37]}  Nxe4 {[%clk 0:02:38]} 12. Qf3 {[%clk 0:01:37]}  d5 {[%clk 0:02:26]} 13. f5 {[%clk 0:01:26]}  Bc5 {[%clk 0:02:25]} 14. c3 {[%clk 0:01:24]}  exf5 {[%clk 0:02:20]} 15. Be3 {[%clk 0:01:07]}  O-O {[%clk 0:02:13]} 16. Nxf5 {[%clk 0:00:54]}  Bxf5 {[%clk 0:01:35]} 17. Bxc5 {[%clk 0:00:46]}  Nxc5 {[%clk 0:01:28]} 18. Qxf5 {[%clk 0:00:45]}  Nxb3 {[%clk 0:01:29]} 19. axb3 {[%clk 0:00:44]}  Qb6+ {[%clk 0:01:29]} 20. Qf2 {[%clk 0:00:29]}  Qe6 {[%clk 0:01:27]} 21. Qd4 {[%clk 0:00:26]}  Rfe8 {[%clk 0:01:22]} 22. Rad1 {[%clk 0:00:16]}  Rad8 {[%clk 0:01:16]} 23. Rfe1 {[%clk 0:00:15]}  Qf5 {[%clk 0:01:08]} 24. c4 {[%clk 0:00:11]}  f6 {[%clk 0:00:49]} 25. exf6 {[%clk 0:00:07]}  Rxe1+ {[%clk 0:00:49]} 26. Rxe1 {[%clk 0:00:08]}  Qxf6 {[%clk 0:00:46]} 27. Qxf6 {[%clk 0:00:08]}  gxf6 {[%clk 0:00:47]} 28. Rd1 {[%clk 0:00:04]}  d4 {[%clk 0:00:46]} 29. Kf2 {[%clk 0:00:03]}  Kf7 {[%clk 0:00:47]} 30. Rd2 {[%clk 0:00:01]}  Ke6 {[%clk 0:00:47]} 31. Ke2 {[%clk 0:00:02]}  Ke5 {[%clk 0:00:47]} 32. Kd3 {[%clk 0:00:03]}  f5 {[%clk 0:00:42]} 33. Re2+ {[%clk 0:00:03]}  Kf4 {[%clk 0:00:43]} 34. Rf2+ {[%clk 0:00:03]}  Kg4 {[%clk 0:00:43]} 35. g3 {[%clk 0:00:03]}  h5 {[%clk 0:00:42]} 36. Rf4+ {[%clk 0:00:02]}  Kg5 {[%clk 0:00:32]} 37. Rxd4 {[%clk 0:00:03]}  Rb8 {[%clk 0:00:30]} 38. h4+ {[%clk 0:00:03]}  Kf6 {[%clk 0:00:28]} 39. Rd6+ {[%clk 0:00:04]}  Ke5 {[%clk 0:00:29]} 40. c5 {[%clk 0:00:05]}  a5 {[%clk 0:00:28]} 41. Rb6 {[%clk 0:00:03]}  Rd8+ {[%clk 0:00:27]} 42. Kc3 {[%clk 0:00:03]}  b4+ {[%clk 0:00:23]} 43. Kc4 {[%clk 0:00:03]}  Rd2 {[%clk 0:00:23]} 44. Kb5 {[%clk 0:00:02]}  Rxb2 {[%clk 0:00:23]} 45. c6 {[%clk 0:00:02]}  Kd6 {[%clk 0:00:21]} 46. Rb7 {[%clk 0:00:02]}  Rc2 {[%clk 0:00:20]} 47. Rd7+ {[%clk 0:00:03]}  Ke6 {[%clk 0:00:20]} 48. Rd3 {[%clk 0:00:03]}  Rc3 {[%clk 0:00:19]} 49. Rxc3 {[%clk 0:00:01]}  bxc3 {[%clk 0:00:20]} 50. c7 {[%clk 0:00:02]}  Kd7 {[%clk 0:00:20]} 51. c8=Q+ {[%clk 0:00:03]}  Kxc8 {[%clk 0:00:21]} 0-1


[Site "https://www.chess.com"]

[Event "Titled Tuesday Blitz March 01 Early 2022"]
[White "Van Foreest, Jorden"]
[Black "Kanyamarala, Tarun"]
[WhiteFideId "1039784"]
[BlackFideId "45004714"]
[WhiteElo "2609"]
[BlackElo "2144"]
[Result "1-0"]
[Round "01"]
[TimeControl "180+1"]
[Date "2022.03.01"]
[WhiteClock "0:00:15"]
[BlackClock "0:00:10"]

1. d4 {[%clk 0:02:58]}  f5 {[%clk 0:02:59]} 2. Nc3 {[%clk 0:02:54]}  Nf6 {[%clk 0:02:58]} 3. Bg5 {[%clk 0:02:54]}  d5 {[%clk 0:02:59]} 4. e3 {[%clk 0:02:54]}  e6 {[%clk 0:02:57]} 5. Bd3 {[%clk 0:02:50]}  Be7 {[%clk 0:02:56]} 6. Nf3 {[%clk 0:02:50]}  O-O {[%clk 0:02:56]} 7. O-O {[%clk 0:02:50]}  Nbd7 {[%clk 0:02:56]} 8. Ne2 {[%clk 0:02:49]}  Ne4 {[%clk 0:02:54]} 9. Bxe7 {[%clk 0:02:47]}  Qxe7 {[%clk 0:02:55]} 10. c4 {[%clk 0:02:47]}  c6 {[%clk 0:02:54]} 11. Rb1 {[%clk 0:02:40]}  Rf6 {[%clk 0:02:46]} 12. b4 {[%clk 0:02:39]}  Rh6 {[%clk 0:02:44]} 13. b5 {[%clk 0:02:38]}  g5 {[%clk 0:02:43]} 14. bxc6 {[%clk 0:02:36]}  bxc6 {[%clk 0:02:42]} 15. Bxe4 {[%clk 0:02:08]}  fxe4 {[%clk 0:02:22]} 16. Ne5 {[%clk 0:02:09]}  Nxe5 {[%clk 0:02:18]} 17. dxe5 {[%clk 0:02:10]}  g4 {[%clk 0:02:19]} 18. g3 {[%clk 0:01:58]}  Qg5 {[%clk 0:02:16]} 19. Nf4 {[%clk 0:01:55]}  Qxe5 {[%clk 0:02:11]} 20. Qxg4+ {[%clk 0:01:52]}  Kh8 {[%clk 0:02:10]} 21. Rfc1 {[%clk 0:01:35]}  Ba6 {[%clk 0:02:02]} 22. cxd5 {[%clk 0:01:27]}  Rg8 {[%clk 0:01:52]} 23. Qxg8+ {[%clk 0:00:58]}  Kxg8 {[%clk 0:01:52]} 24. Rxc6 {[%clk 0:00:59]}  Be2 {[%clk 0:01:29]} 25. Rc8+ {[%clk 0:00:51]}  Kg7 {[%clk 0:01:19]} 26. Rb7+ {[%clk 0:00:48]}  Kf6 {[%clk 0:01:18]} 27. Rf8+ {[%clk 0:00:40]}  Kg5 {[%clk 0:01:18]} 28. Nxe2 {[%clk 0:00:33]}  Rf6 {[%clk 0:01:07]} 29. Rg8+ {[%clk 0:00:29]}  Kh6 {[%clk 0:01:07]} 30. Rgg7 {[%clk 0:00:18]}  Rf8 {[%clk 0:00:32]} 31. Rxh7+ {[%clk 0:00:18]}  Kg6 {[%clk 0:00:32]} 32. Nf4+ {[%clk 0:00:17]}  Rxf4 {[%clk 0:00:30]} 33. Rbg7+ {[%clk 0:00:16]}  Kf6 {[%clk 0:00:21]} 34. Rf7+ {[%clk 0:00:16]}  Kg6 {[%clk 0:00:19]} 35. Rhg7+ {[%clk 0:00:17]}  Kh6 {[%clk 0:00:18]} 36. gxf4 {[%clk 0:00:14]}  Qa1+ {[%clk 0:00:16]} 37. Kg2 {[%clk 0:00:14]}  exd5 {[%clk 0:00:17]} 38. Rg3 {[%clk 0:00:14]}  Qxa2 {[%clk 0:00:10]} 39. f5 {[%clk 0:00:14]}  d4 {[%clk 0:00:10]} 40. Rg6+ {[%clk 0:00:14]}  Kh5 {[%clk 0:00:10]} 41. Rh7# {[%clk 0:00:15]} 1-0


[Site "https://www.chess.com"]

[Event "Titled Tuesday Blitz March 01 Early 2022"]
[White "Vlassov, Nikolai"]
[Black "Ovezdurdyyeva, Jemal"]
[WhiteFideId "4103360"]
[BlackFideId "14001888"]
[WhiteElo "2407"]
[BlackElo "1946"]
[Result "1-0"]
[Round "01"]
[TimeControl "180+1"]
[Date "2022.03.01"]
[WhiteClock "0:00:20"]
[BlackClock "0:00:17"]

1. e4 {[%clk 0:02:57]}  d6 {[%clk 0:02:59]} 2. f4 {[%clk 0:02:57]}  Nf6 {[%clk 0:02:57]} 3. Nc3 {[%clk 0:02:57]}  g6 {[%clk 0:02:55]} 4. Nf3 {[%clk 0:02:57]}  c6 {[%clk 0:02:53]} 5. d4 {[%clk 0:02:53]}  b5 {[%clk 0:02:53]} 6. Bd3 {[%clk 0:02:52]}  b4 {[%clk 0:02:51]} 7. Ne2 {[%clk 0:02:52]}  Bg7 {[%clk 0:02:51]} 8. O-O {[%clk 0:02:48]}  O-O {[%clk 0:02:50]} 9. h3 {[%clk 0:02:48]}  c5 {[%clk 0:02:46]} 10. e5 {[%clk 0:02:44]}  Ne8 {[%clk 0:02:43]} 11. dxc5 {[%clk 0:02:40]}  d5 {[%clk 0:02:38]} 12. a3 {[%clk 0:02:32]}  bxa3 {[%clk 0:02:37]} 13. b4 {[%clk 0:02:24]}  a5 {[%clk 0:02:31]} 14. b5 {[%clk 0:02:17]}  Nd7 {[%clk 0:02:26]} 15. Bxa3 {[%clk 0:02:13]}  Qc7 {[%clk 0:02:20]} 16. c6 {[%clk 0:02:12]}  Qb6+ {[%clk 0:02:20]} 17. Kh2 {[%clk 0:02:10]}  Nc5 {[%clk 0:02:20]} 18. Rb1 {[%clk 0:02:04]}  Nc7 {[%clk 0:02:17]} 19. Bxc5 {[%clk 0:02:01]}  Qxc5 {[%clk 0:02:17]} 20. b6 {[%clk 0:02:01]}  Qxc6 {[%clk 0:02:16]} 21. bxc7 {[%clk 0:02:00]}  Qxc7 {[%clk 0:02:16]} 22. Ned4 {[%clk 0:01:56]}  f6 {[%clk 0:02:08]} 23. Qe2 {[%clk 0:01:55]}  a4 {[%clk 0:02:01]} 24. exf6 {[%clk 0:01:42]}  Qxf4+ {[%clk 0:01:58]} 25. Kh1 {[%clk 0:01:34]}  Qxf6 {[%clk 0:01:52]} 26. Bb5 {[%clk 0:01:01]}  e5 {[%clk 0:01:44]} 27. Bc6 {[%clk 0:00:58]}  Ba6 {[%clk 0:01:40]} 28. Bxd5+ {[%clk 0:00:54]}  Kh8 {[%clk 0:01:40]} 29. Nb5 {[%clk 0:00:53]}  Rab8 {[%clk 0:01:24]} 30. c4 {[%clk 0:00:53]}  Qe7 {[%clk 0:01:20]} 31. Nd2 {[%clk 0:00:37]}  Qd7 {[%clk 0:01:16]} 32. Rxf8+ {[%clk 0:00:35]}  Rxf8 {[%clk 0:01:12]} 33. Ne4 {[%clk 0:00:30]}  Rc8 {[%clk 0:00:58]} 34. Nec3 {[%clk 0:00:27]}  Qe7 {[%clk 0:00:36]} 35. Nxa4 {[%clk 0:00:26]}  Rf8 {[%clk 0:00:22]} 36. Nac3 {[%clk 0:00:26]}  Qc5 {[%clk 0:00:21]} 37. Ne4 {[%clk 0:00:25]}  Qc8 {[%clk 0:00:19]} 38. Nbd6 {[%clk 0:00:24]}  Qd7 {[%clk 0:00:17]} 39. Rf1 {[%clk 0:00:20]}  Rb8 {[%clk 0:00:17]} 40. Nf7+ {[%clk 0:00:20]} 1-0


[Site "https://www.chess.com"]